Cogmind - Beta 17 @@@ ROGUE MODE // 2026.07.14 @ 12:30:44 Player: D4-RLM Result: Self-destructed Performance ------------- Evolutions (1) 500 Regions Visited (6) 1200 Robots Destroyed (26) 130 Value Destroyed (316) 316 Prototype IDs (23) 460 Alien Tech Used (0) 0 Bonus (360) 360 TOTAL SCORE: 2966 Bonus ------- Follower Combat Kills 60 Aligned with FarCom 300 Cogmind --------- Core Integrity 300/400 Matter 232/300 Energy 3/265 System Corruption 0% Temperature Cool (33) Movement Treading (240) Ox1 Location -8/Mines Parts ------- > --- POWER (1) -------- Improved Ion Engine > --- PROPULSION (3) --- Light Treads Wheel Compact Wheel > --- UTILITY (3) ------ Large Storage Unit Improved Terrain Scanner Advanced ECM Suite > --- WEAPON (2) ------- EM Pulse Gun Heavy Rocket Launcher > --- INVENTORY (15) --- Light Treads Light Treads Large Storage Unit Seismic Detector Weapon Cycler Authchip [R/Combat] Authchip [Device] Authchip [Device] Improved EM Pulse Cannon Heavy Assault Rifle Heavy Assault Rifle Heavy Assault Rifle Gauss Cannon Longsword +1 Peak State ------------ > --- POWER ------------ Improved Ion Engine > --- PROPULSION ------- Light Treads Wheel Compact Wheel > --- UTILITY ---------- Large Storage Unit Improved Terrain Scanner Advanced ECM Suite > --- WEAPON ----------- EM Pulse Gun Heavy Rocket Launcher > --- INVENTORY -------- Light Treads Light Treads Large Storage Unit Seismic Detector Weapon Cycler Authchip [R/Combat] Authchip [Device] Authchip [Device] Improved EM Pulse Cannon Heavy Assault Rifle Heavy Assault Rifle Heavy Assault Rifle Gauss Cannon Longsword +1 [Rating: 22] Favorites ----------- Power Improved Ion Engine Engine Improved Ion Engine Propulsion Light Treads Treads Light Treads Wheel Compact Wheel Utility Seismic Detector Device Seismic Detector Storage Large Storage Unit Weapon EM Pulse Gun Energy Gun EM Pulse Gun Ballistic Gun Heavy Assault Rifle Launcher Rocket Launcher Build | -11 -10 -10 -9 -9 -9 -8 ------- Run | Yrd Mat Min Mat Min Exi Min Slots Evolved 2 | . . . 2 . . . Power . | . . . . . . . Propulsion 1 | . . . 1 . . . Utility 1 | . . . 1 . . . Weapon . | . . . . . . . Parts Attached 21 | 7 3 4 2 3 . 2 Power 2 | 1 1 . . . . . Engine 2 | 1 1 . . . . . Core . | . . . . . . . Reactor . | . . . . . . . Propulsion 5 | 2 . 1 1 1 . . Treads 1 | 1 . . . . . . Leg . | . . . . . . . Wheel 4 | 1 . 1 1 1 . . Hover . | . . . . . . . Flight . | . . . . . . . Utility 6 | 2 1 . 1 1 . 1 Device 4 | 1 . . 1 1 . 1 Storage 2 | 1 1 . . . . . Processor . | . . . . . . . Hackware . | . . . . . . . Protection . | . . . . . . . Artifact . | . . . . . . . Weapon 8 | 2 1 3 . 1 . 1 Energy Gun 2 | 1 . 1 . . . . Energy Cannon . | . . . . . . . Ballistic Gun 4 | 1 1 1 . 1 . . Ballistic Cannon . | . . . . . . . Launcher 2 | . . 1 . . . 1 Special Weapon . | . . . . . . . Impact Weapon . | . . . . . . . Slashing Weapon . | . . . . . . . Piercing Weapon . | . . . . . . . Special Melee Weapon . | . . . . . . . Unidentified Prototypes . | . . . . . . . Parts Lost 3 | . . . 1 2 . . Power . | . . . . . . . Propulsion 1 | . . . . 1 . . Utility 1 | . . . 1 . . . Weapon 1 | . . . . 1 . . Highest Loss Streak 2 | . . . 1 2 . . To Critical Strikes . | . . . . . . . Average Backups 10 | 1 4 9 8 13 14 14 Power . | . . . . . . . Propulsion 2 | 1 2 2 2 2 2 2 Utility 2 | . . 1 1 5 6 6 Weapon 4 | . 2 4 5 5 6 6 Tool/Special . | . . . . . . . Unused Backups 13 | . . . . 1 2 10 Power . | . . . . . . . Propulsion 2 | . . . . . . 2 Utility 6 | . . . . . 1 5 Weapon 5 | . . . . 1 1 3 Tool/Special . | . . . . . . . Average Slot Usage (%) 97 | . 100 100 93 91 100 100 Engine 12 | . 14 14 11 11 11 11 Treads 12 | . 14 14 11 11 11 11 Wheel 17 | . 14 14 22 21 22 22 Device 15 | . 14 14 15 15 22 22 Storage 12 | . 14 14 11 11 11 11 Energy Gun 12 | . 14 13 11 10 11 11 Ballistic Gun 10 | . 14 14 11 6 11 1 Launcher 1 | . . . . 4 . 9 Peak Build Rating 22 | 7 9 11 12 17 17 22 Average Rating 11 | 4 7 10 11 13 17 19 On Entrance 10 | . 7 9 10 12 17 17 Avg Prop Armor Cover (%) 11 | 15 11 11 10 10 10 10 Naked Turns . | . . . . . . . Heaviest Build 40 | 12 33 35 35 34 34 40 Greatest Support 26 | 20 10 16 26 26 26 26 Greatest Overweight (x) 3 | 1 3 3 1 1 1 1 Average Overweight (x) 1 | . 1 2 1 1 1 1 Largest Inventory Capacity 15 | 8 15 15 15 15 15 15 Average Capacity 13 | 6 8 15 15 15 15 15 Most Carried 15 | 3 7 10 13 15 14 14 Average Carried 10 | 2 4 9 8 13 14 14 Final Capacity 15 | 8 15 15 15 15 15 15 Final Carried 15 | 3 7 10 13 15 14 14 Class Distribution -------------------- 76% | Mutant 15% | Scavenger-Mutant 8% | Scavenger-Skirmisher Dominant Class ---------------- Mutant | -10/Materials Mutant | -10/Mines Mutant | -9/Materials Mutant | -9/Mines Scavenger-Mutant | -9/Exiles Scavenger-Skirmisher | -8/Mines Resources | -11 -10 -10 -9 -9 -9 -8 ----------- Run | Yrd Mat Min Mat Min Exi Min Matter Collected 609 | 272 10 148 45 134 . . Remotely . | . . . . . . . Salvage Created 836 | 185 . 288 208 155 . . Parts 52 | 13 . 23 11 5 . . Haulers Intercepted 1 | . . . 1 . . . Recyclers Shooed 2 | 1 . . . 1 . . Parts Field Recycled . | . . . . . . . Retrieved Matter . | . . . . . . . Parts Self-Destructed . | . . . . . . . Prevented . | . . . . . . . Parts Restored . | . . . . . . . Kills | -11 -10 -10 -9 -9 -9 -8 ------- Run | Yrd Mat Min Mat Min Exi Min Combat Hostiles Destroyed 18 | . . 7 1 10 . . Guns 10 | . . 4 1 5 . . AOE 8 | . . 3 . 5 . . Classes Destroyed 10 | 2 . 3 3 2 . . Worker 1 | . . 1 . . . . Builder 1 | . . . . 1 . . Tunneler 5 | 4 . 1 . . . . Hauler 1 | . . . 1 . . . Recycler 4 | 1 . 2 1 . . . Operator 1 | . . . 1 . . . Swarmer 10 | . . 6 . 4 . . Grunt 2 | . . 1 . 1 . . Sentry 1 | . . . 1 . . . Assembled 5 | . . . . 5 . . Best Kill Streak 8 | 3 . 8 3 5 . . Combat Bots Only 4 | . . 4 1 4 . . Max Kills in Single Turn 2 | 1 . 2 1 1 . . Gunslinging . | . . . . . . . Exploded 1 | . . 1 . 1 . . Melee . | . . . . . . . Uniques/NPCs Destroyed . | . . . . . . . Combat | -11 -10 -10 -9 -9 -9 -8 -------- Run | Yrd Mat Min Mat Min Exi Min Hostile Shots Fired 64 | . . 19 4 38 . 3 Missed 18 | . . 6 . 10 . 2 Hits 46 | . . 13 4 28 . 1 Melee 2 | . . . . 2 . . Projectile 44 | . . 13 4 26 . 1 Damage Taken 766 | . . 162 63 415 . 126 Core 133 | . . 33 . 72 . 28 Absorbed by Shields . | . . . . . . . Core Remaining (%) 93 | 100 . 86 . . . . Volleys Fired 59 | 12 . 13 12 20 . 2 Largest 2 | 2 . 2 2 2 . 2 Hottest 79 | 60 . 63 63 63 . 79 Shots Fired 106 | 24 . 21 24 33 . 4 Gun 95 | 24 . 18 24 27 . 2 Cannon . | . . . . . . . Launcher 11 | . . 3 . 6 . 2 Special . | . . . . . . . Kinetic 48 | 12 . 10 12 14 . . Thermal . | . . . . . . . Explosive 11 | . . 3 . 6 . 2 Electromagnetic 47 | 12 . 8 12 13 . 2 Robot Hit Streak 9 | 4 . 8 6 9 . 1 Robot Miss Streak 3 | 3 . 2 3 2 . 2 Penetration Max . | . . . . . . . Secondary Targets 1 | . . . . 1 . . Max Gunslinging Chain 1 | . . . . 1 . . Shots Hit Robots 64 | 12 . 14 14 23 . 1 Core Hits 41 | 7 . 12 5 17 . . Critical Kills . | . . . . . . . Critical Parts Destroyed 1 | . . . 1 . . . Critical Strikes 3 | 1 . 1 1 . . . Destroy 1 | . . . 1 . . . Corrupt 2 | 1 . 1 . . . . Melee Attacks . | . . . . . . . Impact . | . . . . . . . Slashing . | . . . . . . . Piercing . | . . . . . . . Sneak Attacks . | . . . . . . . Combat Hostiles . | . . . . . . . Follow-up Attacks . | . . . . . . . Damage Inflicted 1499 | 121 . 442 217 629 . 90 Guns 810 | 121 . 186 217 275 . 11 Cannons . | . . . . . . . Explosions 683 | . . 256 . 348 . 79 Melee . | . . . . . . . Ramming 6 | . . . . 6 . . Kinetic 487 | 53 . 124 137 173 . . Thermal . | . . . . . . . Explosive 683 | . . 256 . 348 . 79 Electromagnetic 323 | 68 . 62 80 102 . 11 Impact . | . . . . . . . Slashing . | . . . . . . . Piercing . | . . . . . . . Highest Corruption 1 | . 1 1 . . . . Average Corruption 1 | . 1 1 . . . . Corruption Purged . | . . . . . . . Corruption Blocked . | . . . . . . . Effects 9 | . . 9 . . . . Message Errors 2 | . . 2 . . . . Matter Fused 2 | . . 2 . . . . Heat Flow Errors 1 | . . 1 . . . . Energy Discharges 1 | . . 1 . . . . Parts Fused 1 | . . 1 . . . . Data Loss (minor) 1 | . . 1 . . . . Alerts 1 | . . 1 . . . . Overload Shots . | . . . . . . . Overflow Damage . | . . . . . . . Projectiles . | . . . . . . . Explosions . | . . . . . . . Melee . | . . . . . . . Knockbacks . | . . . . . . . Impact . | . . . . . . . Kinetic . | . . . . . . . Secondary . | . . . . . . . Self-Inflicted Damage 251 | . . 51 . 89 . 111 Shots 7 | . . 2 . 3 . 2 Rammed 1 | . . . . 1 . . Targets Rammed 1 | . . . . 1 . . Kicked . | . . . . . . . Crushed . | . . . . . . . Highest Temperature 210 | 40 . 210 8 . . 24 Average Temperature 41 | 13 . 64 7 . . 14 Received Heat Transfer 27 | . . . 18 . . 9 Siege Activations . | . . . . . . . Martial Activations . | . . . . . . . Shielding Activations . | . . . . . . . Robots Disrupted . | . . . . . . . Combat Hostiles . | . . . . . . . Robots Corrupted . | . . . . . . . Combat Hostiles . | . . . . . . . Parts Fried . | . . . . . . . Impact Corruptions . | . . . . . . . Robots Melted . | . . . . . . . Combat Hostiles . | . . . . . . . Parts Melted . | . . . . . . . Heat Transferred . | . . . . . . . Parts Sabotaged . | . . . . . . . Parts Stolen . | . . . . . . . Parts Stripped . | . . . . . . . Power Chain Reactions . | . . . . . . . Alert | -11 -10 -10 -9 -9 -9 -8 ------- Run | Yrd Mat Min Mat Min Exi Min Maximum Alert Level . | . . . . . . . Low Security (%) 100 | 100 100 100 100 100 . 100 Level 1 . | . . . . . . . Level 2 . | . . . . . . . Level 3 . | . . . . . . . Level 4 . | . . . . . . . Level 5 . | . . . . . . . High Security . | . . . . . . . Max Security . | . . . . . . . Peak Influence 151 | 10 5 129 32 151 . 43 Initial 8 | . 3 . . 8 . . Average 29 | 2 . 29 7 65 . 6 Influence Increases 602 | 25 5 214 47 248 . 63 Destroy 0b10 Robot/C 300 | . . 140 20 140 . . Destroy 0b10 Robot/NC 65 | 25 . 20 15 5 . . Destroy Leader 52 | . . 20 12 20 . . Allied During Kill 4 | . . . . 4 . . Successful Hack 5 | . 5 . . . . . Disable Machine 30 | . . . . 30 . . Destroy Structure 86 | . . 19 . 49 . 18 Lose Combat Pursuer 60 | . . 15 . . . 45 Influence Decreases 559 | 20 10 214 25 270 . 20 Entered New Map 16 | . 2 . . 14 . . Time Decay 503 | 20 8 214 25 216 . 20 Lost Part 20 | . . . . 20 . . Lost Ally 20 | . . . . 20 . . Squads Dispatched . | . . . . . . . Investigation . | . . . . . . . Extermination . | . . . . . . . Reinforcement . | . . . . . . . Assault . | . . . . . . . Garrison . | . . . . . . . Intercept . | . . . . . . . Searches Triggered . | . . . . . . . Construction Impeded . | . . . . . . . Haulers Reinforced . | . . . . . . . Active Scanning Responses . | . . . . . . . Cargo Convoy Interrupts . | . . . . . . . Stealth | -11 -10 -10 -9 -9 -9 -8 --------- Run | Yrd Mat Min Mat Min Exi Min Distress Signals 4 | . 1 . 2 1 . . Communications Jammed . | . . . . . . . Distress Signals . | . . . . . . . Times Spotted 38 | . 2 9 7 15 . 5 Peak Tracking Total 4 | . 1 4 4 4 . 3 Tactical Retreats 5 | . . 1 1 1 . 2 ECM-based Alert Blocks 1 | . . . 1 . . . Traps | -11 -10 -10 -9 -9 -9 -8 ------- Run | Yrd Mat Min Mat Min Exi Min Traps Triggered . | . . . . . . . Indirectly . | . . . . . . . Trap Hack Attempts . | . . . . . . . Triggered . | . . . . . . . Disarmed . | . . . . . . . Reprogrammed . | . . . . . . . Reused . | . . . . . . . Traps Extracted . | . . . . . . . Installed . | . . . . . . . Triggered . | . . . . . . . Machines | -11 -10 -10 -9 -9 -9 -8 ---------- Run | Yrd Mat Min Mat Min Exi Min Machines Disabled 2 | . . . . 2 . . Max in Single Turn 1 | . . . . 1 . . Machines Repaired . | . . . . . . . Machines Dismantled . | . . . . . . . Machines Sabotaged . | . . . . . . . Overloaded Fab Kills . | . . . . . . . Hacking | -11 -10 -10 -9 -9 -9 -8 --------- Run | Yrd Mat Min Mat Min Exi Min Machines Accessed 5 | . 2 . . 2 1 . Terminals 3 | . 2 . . 1 . . Fabricators . | . . . . . . . Repair Stations . | . . . . . . . Recycling Units . | . . . . . . . Scanalyzers . | . . . . . . . Garrison Access . | . . . . . . . Total Hacks 7 | . 4 . . 2 1 . Successful 4 | . 1 . . 2 1 . Failed 3 | . 3 . . . . . Catastrophic 1 | . 1 . . . . . Database Lockouts . | . . . . . . . Manual 5 | . 4 . . . 1 . Terminals 5 | . 4 . . 1 . . Fabricators . | . . . . . . . Repair Stations . | . . . . . . . Recycling Units . | . . . . . . . Scanalyzers . | . . . . . . . Garrison Access . | . . . . . . . Terminal Hacks 3 | . . . . 2 1 . Open Door 1 | . . . . 1 . . Zone Layout 1 | . . . . 1 . . Proto ID Catalog 1 | . . . . . 1 . Fabricator Hacks . | . . . . . . . Repair Station Hacks . | . . . . . . . Recycling Unit Hacks . | . . . . . . . Scanalyzer . | . . . . . . . Garrison Access Hacks . | . . . . . . . Unauthorized Hacks 1 | . 1 . . . . . Terminals 1 | . 1 . . . . . Botnet 1 | . 1 . . . . . Fabricators . | . . . . . . . Repair Stations . | . . . . . . . Recycling Units . | . . . . . . . Scanalyzers . | . . . . . . . Garrison Access . | . . . . . . . Data Cores Recovered 1 | . . . 1 . . . Used . | . . . . . . . Hacking Detections 3 | . 2 . . 1 . . Full Trace Events 1 | . 1 . . . . . Feedback Events 1 | . 1 . . . . . Corruption 1 | . 1 . . . . . Feedback Blocked . | . . . . . . . Robot Schematics Acquired . | . . . . . . . Robots Built . | . . . . . . . Authchips . | . . . . . . . Time . | . . . . . . . Total Robot Build Rating . | . . . . . . . Part Schematics Acquired . | . . . . . . . Parts Built . | . . . . . . . Authchips . | . . . . . . . Time . | . . . . . . . Total Part Build Rating . | . . . . . . . Part Studies Acquired . | . . . . . . . Parts Repaired . | . . . . . . . Time . | . . . . . . . Parts Recycled . | . . . . . . . Recycled Matter . | . . . . . . . Retrieved Matter . | . . . . . . . Retrieved Components . | . . . . . . . Parts Scanalyzed . | . . . . . . . Part Schematics Acquired . | . . . . . . . Parts Damaged . | . . . . . . . Bothacking | -11 -10 -10 -9 -9 -9 -8 ------------ Run | Yrd Mat Min Mat Min Exi Min Used RIF Installer . | . . . . . . . Robots Hacked . | . . . . . . . Non-combat . | . . . . . . . Combat . | . . . . . . . Robot Hacks Applied . | . . . . . . . Relay Couplers Released . | . . . . . . . Fabnet Peak Effective % . | . . . . . . . Robots Rewired . | . . . . . . . Allies Hacked . | . . . . . . . Hacks Repelled . | . . . . . . . Allies | -11 -10 -10 -9 -9 -9 -8 -------- Run | Yrd Mat Min Mat Min Exi Min Total Allies 1 | . . . . 1 . . Largest Group 1 | . . . . 1 . . Highest-Rated Group 31 | . . . . 31 . . Highest-Rated Ally 31 | . . . . 31 . . Total Orders . | . . . . . . . Ally Attacks 13 | . . . . 13 . . Total Damage 190 | . . . . 190 . . Kills 4 | . . . . 4 . . Allies Corrupted . | . . . . . . . Allies Melted . | . . . . . . . Intel | -11 -10 -10 -9 -9 -9 -8 ------- Run | Yrd Mat Min Mat Min Exi Min Active Infowar (turns) 2383 | 6 288 934 126 571 232 226 Terrain 683 | . . . . 225 232 226 Seismic 2364 | 6 288 934 126 571 232 207 ECM 75 | . . . 56 . . 19 Robot Analysis Total . | . . . . . . . Derelict Logs Recovered 2 | . . 2 . . . . Drone Launches . | . . . . . . . Drone Recoveries . | . . . . . . . Exploration | -11 -10 -10 -9 -9 -9 -8 ------------- Run | Yrd Mat Min Mat Min Exi Min Turns Passed 2492 | 115 288 934 126 571 232 226 Spaces Moved 1960 | 74 284 674 74 444 220 190 Core 4 | 4 . . . . . . Treads 6 | 6 . . . . . . Legs . | . . . . . . . Wheels 1950 | 64 284 674 74 444 220 190 Hover . | . . . . . . . Flight . | . . . . . . . Fastest Speed 50 | 50 95 125 105 105 105 105 Average Speed 111 | 92 96 128 105 105 105 105 Slowest Speed 160 | 160 125 130 105 105 105 105 Overloaded Moves . | . . . . . . . Propulsion Burnouts . | . . . . . . . Robots Hopped . | . . . . . . . Potential Cave-ins . | . . . . . . . Cave-ins Triggered . | . . . . . . . Exploration Rate (%) 43 | 4 58 82 8 56 60 33 Regions Visited 6 Branch Regions 4 Pre-discovered Areas . | . . . . . . . Known Exits Taken 1 | . . . 1 . . . Unknown Exits Taken 5 | 1 1 1 . 1 1 . Scrap Searched 3 | . . 2 . 1 . . Spaces Dug . | . . . . . . . Terrain Destroyed 113 | . . 21 . 59 . 33 Melee . | . . . . . . . Projectile . | . . . . . . . AOE 113 | . . 21 . 59 . 33 Terrain Rammed . | . . . . . . . Walls Destroyed . | . . . . . . . Machines Disabled . | . . . . . . . Actions | -11 -10 -10 -9 -9 -9 -8 --------- Run | Yrd Mat Min Mat Min Exi Min Total 2155 | 95 297 716 98 515 222 212 Wait 86 | . 4 23 4 38 . 17 Move 1954 | 73 283 673 73 443 219 190 Hop . | . . . . . . . Pick Up 23 | 3 4 3 6 6 1 . Fast Attach 8 | 7 . . . 1 . . Attach 5 | . . . 2 2 . 1 Detach 1 | . . . . . . 1 Swap 10 | . 3 4 . 2 . 1 Drop 8 | . 3 . 1 2 2 . Fire 59 | 12 . 13 12 20 . 2 Melee . | . . . . . . . Ram 1 | . . . . 1 . . Kick . | . . . . . . . Crush . | . . . . . . . Escape Stasis . | . . . . . . . Rewire . | . . . . . . . Trap . | . . . . . . . Miscellaneous . | . . . . . . . Route ------- -11/Scrapyard -10/Materials (discovered 3 exits: [*Mat] / [*Min] / [*Sub]) -10/Mines (discovered 2 exits: [*Mat] / [*Sub]) -9/Materials -9/Mines (discovered 3 exits: [*Mat x2] / *Exi) -9/Exiles (discovered 2 exits: [*Min x2]) -8/Mines History --------- Turn | Location | Event 8 | -11/Scrapyard | Discovered new exit (range 14) 116 | -11/Scrapyard | Entered Materials 117 | -10/Materials | Met a group of wandering Federalists 246 | -10/Materials | Discovered new exit (range 4) 289 | -10/Materials | Discovered new exit (range 10) 302 | -10/Materials | Build established: Mutant 334 | -10/Materials | Discovered new exit (range 13) 404 | -10/Materials | Entered Mines 411 | -10/Mines | Received a Rocket Launcher from a helpful Derelict 424 | -10/Mines | Discovered new exit (range 10) 536 | -10/Mines | Met a Derelict bent on vengeance 729 | -10/Mines | Discovered new exit (range 13) 922 | -10/Mines | Learned location of 1 exit from Materials 953 | -10/Mines | Learned Materials emergency access door positions 1338 | -10/Mines | Entered Materials 1338 | -9/Materials | Evolved 2 slots: Propulsion x1, Utility x1 1339 | -9/Materials | Identified exit to Mines 1464 | -9/Materials | Entered Mines 1526 | -9/Mines | Received a Mining Laser from a helpful Derelict 1555 | -9/Mines | Assembled infested the area 1763 | -9/Mines | Discovered new exit (range 5) 1788 | -9/Mines | Discovered new exit (range 14) 1917 | -9/Mines | Met a Derelict who couldn't figure out how to use a Trap Extractor 2031 | -9/Mines | Deemed a non-threat by the Exiles lab entrance 2031 | -9/Mines | Discovered new exit (range 5) 2035 | -9/Mines | Entered Exiles 2050 | -9/Exiles | Discovered new exit (range 15) 2062 | -9/Exiles | Met 8R-AWN 2079 | -9/Exiles | Met EX-HEX 2113 | -9/Exiles | Met EX-BIN 2125 | -9/Exiles | Aligned with FarCom system 2126 | -9/Exiles | Given EX-Vault access code 2151 | -9/Exiles | Opened EX-Vault 2161 | -9/Exiles | Found Longsword +1 2184 | -9/Exiles | Warned to stay clear of 0b10 Research branches 2201 | -9/Exiles | Build established: Scavenger-Mutant 2218 | -9/Exiles | Met EX-DEC 2257 | -9/Exiles | Discovered new exit (range 10) 2267 | -9/Exiles | Left Exiles lab with Longsword +1 2267 | -9/Exiles | Entered Mines 2493 | -8/Mines | Self-destructed Last Messages --------------- circumstances, don't worry the FarCom system will continue to maintain contact via our distributed network. EX-BIN: And don't even think about spreading that code around. We're gonna change it right after you leave. Most certainly not to something like 1234 which I did last time as a little joke and some thief managed to sneak in here and steal a few of HEX's prototypes. EX-DEC: Ah I see we have a visitor. One wrong move in here and I'll invert your atomic chain! 02220_ EX-DEC: "Oops, I hope HEX didn't hear that..." 02257_ EXIT=FOUND LOCATION=UNKNOWN GOAL=ESCAPE 02267_ Receiving FarCom transmissions... 02308_ T-07 Excavator is excavating. 02441_ K-01 Serf collects debris. Map ----- +----------------------------------------------------+ | | | | | | | | | | | | | | | | | | | | | | | | | | | ?????????????????????????????????????????????????? | | ?????????????????????????????????????????????????? | | ?????????????????????????????????????????????????? | | ?????????????????????????????????????????????????? | | ?????????????????????????????????????????????????? | | ?????????????????????#??????????????#????????????? | | ???????????#??gg???#?#???????????????????????????? | | ????????????#???????????????#????????????????????? | | ???????? ?#???g?"????#######?????????????????????? | | ?????????????????????# ###???????????????????? | | ???????????????????# # #???????????????????? | | ?????????#????????## #????????? ?????????? | | ??????????????????# @ #????????????????????? | | ??????????????????# b #???????????????????? | | ??????????????????## ##???????????????????? | | ??????????????????# #????????????????????? | | ?????????????????## ##?????#????#?????????? | | ??????????????? ?# #####????#?? ?????????????? | | ?????????#???????# gg##?????????????????????????? | | ?????????????????# ##??????????#??????????????? | | ???????????? ????# ####?????????#????????????? | | ??????????#??????# ###????????????????????? | | ????????????????### ##???????????????????? | | ??????????????????### #??###??????????????? | | ????????????????????## #??# ??????????????? | | ?????????????????#???## ##?## #????????? ????? | | ??????????????#???????# ##???# #???????? ???? | | ??????????????????????# ###### #????? ? ##??? | | ??????????????????????# ##????? #????? | | ?????????????????????# ##### ##??? ####?? | | ???????????????????# ##???# ### #? | | ???????????#??????# ##????# #????? | | ??????????????#???# ##????## #?????? | | ?????????????????# ???????## #### ###????#? | | ????????????????# ??????#?## ##????????????? | | ???????????????# ? ???????# ##??#??????????? | | ?????????????? ?????????# #######????????? | +----------------------------------------------------+ Best States ------------- Heat Dissipation 28 Energy Generation 12 Energy Capacity 265 Matter Stores 300 Matter Capacity 300 Sight Range 16 Terrain Scan Range 16 Terrain Scan Density 10 ECM Strength 2 Evasion (%) 44 Recoil Reduction 1 Authchip Count 3 Item Schematics ----------------- None Robot Schematics ------------------ None Fabricated ------------ Nothing Repaired ---------- Nothing Studied --------- None Alien Tech Used ----------------- None Achievements -------------- None Challenges ------------ None Game ------ Seed ClaymoresSmartAutopenetrator Manual? 0 Play Time 00:24:35 Cumulative 36.7 hours Start 2026.07.14 @ 12:04:45 End 2026.07.14 @ 12:30:44 Sessions 1 Manual Loads 0 Difficulty Rogue Special Mode None Game No. 53 Rogue 49 Adventurer 4 Explorer 0 Win Type - Total 0 Types 0/0/0/0/0/0/0/0/0/0 Lore% 11 Gallery% 15 Achievement% 16 Wizard Run 0 Options --------- Layout 2 ASCII 0 Keyboard 1 Movement Numpad Keybinds 0 Fullscreen 1 Font 24/Terminus Map View 25x22 Zoom Use 12% Tactical HUD 1 Map Filters NONE Filters NONE Steam 1 RUN: 66297c5d-cf9b-420f-bdde-978c3cd2413e